bitfinex/quotes_BTCUSD_20230905
["timestamp","ask_amount","ask_price","bid_price","bid_amount"]
[1693938491290,0.29498111,25727.0,25726.0,0.00028261]
[1693938491550,0.85562325,25727.0,25726.0,0.00028261]
[1693938491754,0.96012325,25727.0,25726.0,0.00028261]
[1693938491972,2.51490925,25727.0,25723.0,0.119998]
[1693938492186,2.51390925,25727.0,25723.0,0.119998]
[1693938492387,1.71889287,25726.0,25723.0,0.119998]
[1693938492591,1.71889287,25726.0,25723.0,0.099998]
[1693938492801,0.18917737,25725.0,25724.0,0.00028365]
[1693938493896,1.554869,25726.0,25724.0,0.00028365]
[1693938495011,0.003,25725.0,25724.0,0.00028365]
[1693938495574,0.780424,25726.0,25724.0,0.00028365]
[1693938495779,0.01849908,25725.0,25724.0,0.07048365]
[1693938496009,0.01849908,25725.0,25724.0,0.06694365]
[1693938496164,0.01849908,25725.0,25724.0,0.76646365]
[1693938496361,0.01849908,25725.0,25724.0,0.76628365]
[1693938496586,0.01849908,25725.0,25724.0,0.76604365]
[1693938496813,0.01849908,25725.0,25724.0,0.76640365]
[1693938497256,0.02149908,25725.0,25724.0,0.76640365]
[1693938497456,0.02149908,25725.0,25724.0,0.76628365]
[1693938497914,0.02449908,25725.0,25724.0,0.76622365]
[1693938498611,0.02449908,25725.0,25724.0,0.76616365]
[1693938498870,0.21425675,25725.0,25724.0,0.76616365]
[1693938499144,0.21425675,25725.0,25724.0,0.00028365]
[1693938500061,0.99170975,25725.0,25724.0,0.00028365]
[1693938500542,0.98870975,25725.0,25724.0,0.00028365]
[1693938500971,0.99070975,25725.0,25724.0,0.00028365]
[1693938501168,0.98870975,25725.0,25724.0,0.00028365]
[1693938501589,0.98670975,25725.0,25724.0,0.00028365]
[1693938501798,0.98970975,25725.0,25724.0,0.00028365]
[1693938502177,0.98670975,25725.0,25724.0,0.00028365]
[1693938502581,0.98870975,25725.0,25724.0,0.00028365]
[1693938504627,0.98670975,25725.0,25724.0,0.00028365]
[1693938504831,0.98570975,25725.0,25724.0,0.00028365]
[1693938505033,0.98970975,25725.0,25724.0,0.00028365]
[1693938505579,0.98770975,25725.0,25724.0,0.00028365]
[1693938505764,0.98870975,25725.0,25724.0,0.00028365]
[1693938507261,0.02149908,25725.0,25724.0,0.00028365]
[1693938508503,0.02149908,25725.0,25724.0,0.10278365]
[1693938508702,0.02149908,25725.0,25724.0,0.89242365]
[1693938508910,0.02149908,25725.0,25724.0,0.88882365]
[1693938509109,0.02149908,25725.0,25724.0,0.88816365]
[1693938509256,0.02149908,25725.0,25724.0,0.88786365]
[1693938509457,0.02149908,25725.0,25724.0,0.88468365]
[1693938509758,0.02149908,25725.0,25724.0,0.88408365]
[1693938509962,0.02149908,25725.0,25724.0,1.66114765]
[1693938510169,0.02149908,25725.0,25724.0,1.65928765]
[1693938510369,0.02149908,25725.0,25724.0,1.65994765]
[1693938510557,0.02149908,25725.0,25724.0,1.66204765]
[1693938510982,0.02149908,25725.0,25724.0,1.65988765]
[1693938511193,0.02149908,25725.0,25724.0,1.66204765]
[1693938511401,0.02149908,25725.0,25724.0,2.44253165]
[1693938511607,0.02149908,25725.0,25724.0,2.48231165]
[1693938511791,0.02149908,25725.0,25724.0,3.26483565]
[1693938512054,0.02149908,25725.0,25724.0,3.40211565]
[1693938512278,0.02149908,25725.0,25724.0,3.26303565]
[1693938512484,0.02149908,25725.0,25724.0,3.39671565]
[1693938512689,0.02149908,25725.0,25724.0,3.26093565]
[1693938512891,0.02149908,25725.0,25724.0,3.258252]
[1693938513092,0.02149908,25725.0,25724.0,3.257292]
[1693938513423,0.02149908,25725.0,25724.0,3.254772]
[1693938513680,0.02149908,25725.0,25724.0,3.255372]
[1693938513881,0.02149908,25725.0,25724.0,3.256692]
[1693938514170,0.02149908,25725.0,25724.0,3.258432]
[1693938514385,0.02149908,25725.0,25724.0,3.257232]
[1693938514584,0.02149908,25725.0,25724.0,3.256392]
[1693938514817,0.02149908,25725.0,25724.0,3.255972]
[1693938515016,0.02149908,25725.0,25724.0,3.255312]
[1693938515218,0.02149908,25725.0,25724.0,3.255192]
[1693938515419,0.02149908,25725.0,25724.0,3.255672]
[1693938515623,0.02149908,25725.0,25724.0,3.255852]
[1693938515823,0.02149908,25725.0,25724.0,3.254532]
[1693938516025,0.02149908,25725.0,25724.0,3.254172]
[1693938516157,0.02149908,25725.0,25724.0,3.253812]
[1693938516356,0.02149908,25725.0,25724.0,3.253452]
[1693938516563,0.02149908,25725.0,25724.0,3.247332]
[1693938516790,0.02149908,25725.0,25724.0,3.246552]
[1693938516992,0.02149908,25725.0,25724.0,3.246132]
[1693938517198,0.02149908,25725.0,25724.0,3.246612]
[1693938517401,0.02149908,25725.0,25724.0,3.246852]
[1693938517576,0.02149908,25725.0,25724.0,4.36737662]
[1693938517753,0.02149908,25725.0,25724.0,3.248052]
[1693938518157,0.02149908,25725.0,25724.0,3.246252]
[1693938518401,0.02149908,25725.0,25724.0,3.223032]
[1693938518602,0.02149908,25725.0,25724.0,3.237552]
[1693938518956,0.02149908,25725.0,25724.0,4.36454699]
[1693938519157,0.02149908,25725.0,25724.0,3.243672]
[1693938519367,0.02149908,25725.0,25724.0,3.242352]
[1693938519585,0.02149908,25725.0,25724.0,3.241932]
[1693938519784,0.02149908,25725.0,25724.0,3.240672]
[1693938519984,0.02149908,25725.0,25724.0,3.240372]
[1693938520188,0.02149908,25725.0,25724.0,3.243552]
[1693938520384,0.02149908,25725.0,25724.0,3.213912]
[1693938520582,0.02149908,25725.0,25724.0,3.214212]
[1693938520792,0.02149908,25725.0,25724.0,3.214632]
[1693938521144,0.02149908,25725.0,25724.0,3.214812]
[1693938521283,0.02149908,25725.0,25724.0,3.215712]
[1693938521485,0.02149908,25725.0,25724.0,3.215412]
[1693938521705,0.02149908,25725.0,25724.0,2.437508]
[1693938521868,0.02149908,25725.0,25724.0,2.437868]
[1693938522136,0.02149908,25725.0,25724.0,2.437748]
[1693938522649,0.02149908,25725.0,25724.0,2.437628]
[1693938522840,0.02149908,25725.0,25724.0,2.437568]
[1693938523045,0.02149908,25725.0,25724.0,2.437508]
[1693938523274,0.02149908,25725.0,25724.0,2.437448]
[1693938523388,0.02149908,25725.0,25724.0,2.437148]
[1693938523586,0.02149908,25725.0,25724.0,2.437088]
[1693938523813,0.02149908,25725.0,25724.0,2.437148]
[1693938524040,0.02149908,25725.0,25724.0,2.436908]
[1693938524244,0.02149908,25725.0,25724.0,2.436788]
[1693938524447,0.02149908,25725.0,25724.0,2.436368]
[1693938524652,0.02149908,25725.0,25724.0,2.436248]
[1693938524896,0.02149908,25725.0,25724.0,2.436308]
[1693938525103,0.02149908,25725.0,25724.0,2.432528]
[1693938525261,0.02149908,25725.0,25724.0,2.430068]
[1693938525671,0.02149908,25725.0,25724.0,2.430008]
[1693938525853,0.02149908,25725.0,25724.0,2.430068]
[1693938526056,0.02149908,25725.0,25724.0,2.434808]
[1693938526260,0.02149908,25725.0,25724.0,2.434688]
[1693938526594,0.02149908,25725.0,25724.0,2.434628]
[1693938526805,0.02149908,25725.0,25724.0,2.434688]
[1693938527003,0.02149908,25725.0,25724.0,2.430188]
[1693938527181,0.02149908,25725.0,25724.0,1.652944]
[1693938527378,0.02149908,25725.0,25724.0,1.579984]
[1693938528134,0.02149908,25725.0,25724.0,0.7]
[1693938530391,0.02149908,25725.0,25723.0,0.019998]
[1693938530565,0.79895308,25725.0,25723.0,0.019998]
[1693938531272,0.79795308,25725.0,25723.0,0.019998]
[1693938531475,0.79995308,25725.0,25723.0,0.019998]
[1693938531854,0.79795308,25725.0,25723.0,0.019998]
[1693938532264,0.79895308,25725.0,25723.0,0.019998]
[1693938541723,0.02149908,25725.0,25723.0,0.019998]
[1693938542501,0.02149908,25725.0,25723.0,2.455036]
[1693938542716,0.02149908,25725.0,25724.0,0.17012]
[1693938542904,0.02149908,25725.0,25724.0,1.647604]
[1693938543103,0.02149908,25725.0,25724.0,1.579984]
[1693938543508,0.01949908,25725.0,25724.0,1.579984]
[1693938543719,0.01949908,25725.0,25724.0,0.7]
[1693938543720,0.02049908,25725.0,25724.0,0.7]
[1693938544921,0.01949908,25725.0,25724.0,0.7]
[1693938545326,0.02149908,25725.0,25724.0,0.7]
[1693938552751,0.02149908,25725.0,25724.0,2.357468]
[1693938552973,0.02149908,25725.0,25724.0,2.423468]
[1693938553109,0.02149908,25725.0,25724.0,3.213192]
[1693938553310,0.02149908,25725.0,25724.0,3.215172]
[1693938553510,0.02149908,25725.0,25724.0,3.216252]
[1693938553715,0.02149908,25725.0,25724.0,3.215712]
[1693938553934,0.02149908,25725.0,25724.0,3.216552]
[1693938554242,0.02149908,25725.0,25724.0,3.217692]
[1693938554456,0.02149908,25725.0,25724.0,3.217632]
[1693938554761,0.02149908,25725.0,25724.0,3.219852]
[1693938554913,0.02149908,25725.0,25724.0,3.219492]
[1693938555090,0.02149908,25725.0,25724.0,3.218712]
[1693938555292,0.02149908,25725.0,25724.0,3.218112]
[1693938555496,0.02149908,25725.0,25724.0,3.211392]
[1693938555707,0.02149908,25725.0,25724.0,3.212532]
[1693938555909,0.02149908,25725.0,25724.0,3.216072]
[1693938556109,0.02149908,25725.0,25724.0,3.216492]
[1693938556311,0.02149908,25725.0,25724.0,3.216312]
[1693938556516,0.02149908,25725.0,25724.0,3.215352]
[1693938556714,0.02149908,25725.0,25724.0,3.213852]
[1693938556913,0.02149908,25725.0,25724.0,3.213732]
[1693938557120,0.02149908,25725.0,25724.0,3.213312]
[1693938557490,0.02149908,25725.0,25724.0,3.211812]
[1693938557667,0.02149908,25725.0,25724.0,3.211512]
[1693938557868,0.02149908,25725.0,25724.0,3.211452]
[1693938558063,0.02149908,25725.0,25724.0,3.211332]
[1693938558266,0.02149908,25725.0,25724.0,3.211212]
[1693938558469,0.02149908,25725.0,25724.0,3.211032]
[1693938558671,0.02149908,25725.0,25724.0,3.210432]
[1693938558878,0.02149908,25725.0,25724.0,3.209112]
[1693938559079,0.02149908,25725.0,25724.0,3.210132]
[1693938559467,0.02149908,25725.0,25724.0,3.208992]
[1693938559827,0.02149908,25725.0,25724.0,3.208932]
[1693938560030,0.02149908,25725.0,25724.0,3.208872]
[1693938560208,0.02149908,25725.0,25724.0,3.208632]
[1693938560388,0.02149908,25725.0,25724.0,3.208572]
[1693938560591,0.02149908,25725.0,25724.0,3.207732]
[1693938560795,0.02149908,25725.0,25724.0,3.207912]
[1693938561118,0.02149908,25725.0,25724.0,3.208092]
[1693938561527,0.02149908,25725.0,25724.0,3.207912]
[1693938561732,0.02149908,25725.0,25724.0,3.207732]
[1693938561976,0.02149908,25725.0,25724.0,3.208332]
[1693938562156,0.02149908,25725.0,25724.0,3.208392]
[1693938562357,0.02149908,25725.0,25724.0,3.208512]
[1693938562560,0.02149908,25725.0,25724.0,3.208752]
[1693938562768,0.02149908,25725.0,25724.0,3.209112]
[1693938562971,0.02149908,25725.0,25724.0,3.208992]
[1693938563206,0.02149908,25725.0,25724.0,3.208812]
[1693938563415,0.02149908,25725.0,25724.0,3.208452]
[1693938563598,0.02149908,25725.0,25724.0,3.208692]
[1693938563808,0.02149908,25725.0,25724.0,3.208632]
[1693938564013,0.02149908,25725.0,25724.0,3.208392]
[1693938564166,0.02149908,25725.0,25724.0,3.208452]
[1693938564373,0.02149908,25725.0,25724.0,3.208272]
[1693938564573,0.02149908,25725.0,25724.0,3.207972]
[1693938564782,0.02149908,25725.0,25724.0,3.207852]
[1693938564982,0.02149908,25725.0,25724.0,3.207792]
[1693938565342,0.02149908,25725.0,25724.0,3.208032]
[1693938565547,0.02149908,25725.0,25724.0,3.207792]
[1693938565824,0.02149908,25725.0,25724.0,3.207432]
[1693938565985,0.02149908,25725.0,25724.0,3.208092]
[1693938566741,0.02149908,25725.0,25724.0,3.207552]
[1693938567156,0.02149908,25725.0,25724.0,3.208152]
[1693938567312,0.02149908,25725.0,25724.0,3.207912]
[1693938567711,0.02149908,25725.0,25724.0,3.207552]
[1693938567942,0.02149908,25725.0,25724.0,3.207372]
[1693938568094,0.02149908,25725.0,25724.0,3.207252]
[1693938568303,0.02149908,25725.0,25724.0,3.207492]
[1693938568555,0.02149908,25725.0,25724.0,3.207072]
[1693938568751,0.02149908,25725.0,25724.0,3.206952]
[1693938569084,0.02149908,25725.0,25724.0,3.205992]
[1693938569273,0.02149908,25725.0,25724.0,3.201492]
[1693938569475,0.02149908,25725.0,25724.0,3.201432]
[1693938569692,0.02149908,25725.0,25724.0,2.357468]
[1693938579439,0.02149908,25725.0,25724.0,1.579984]
[1693938589432,0.02149908,25725.0,25724.0,0.8025]
[1693938596866,0.02149908,25725.0,25724.0,3.219192]
[1693938597086,0.02149908,25725.0,25724.0,3.228192]
[1693938597256,0.02149908,25725.0,25724.0,3.226932]
[1693938597428,0.02149908,25725.0,25724.0,3.226632]
[1693938597630,0.02149908,25725.0,25724.0,3.226212]
[1693938597838,0.02149908,25725.0,25724.0,3.227352]
[1693938598035,0.02149908,25725.0,25724.0,3.227232]
[1693938598264,0.02149908,25725.0,25724.0,3.226272]
[1693938598423,0.02149908,25725.0,25724.0,3.226032]
[1693938598635,0.02149908,25725.0,25724.0,3.222732]
[1693938598839,0.02149908,25725.0,25724.0,3.222252]
[1693938599066,0.02149908,25725.0,25724.0,3.221892]
[1693938599269,0.02149908,25725.0,25724.0,3.221352]
[1693938599470,0.02149908,25725.0,25724.0,3.221052]
[1693938599673,0.02149908,25725.0,25724.0,3.220812]
[1693938599869,0.02149908,25725.0,25724.0,3.220632]
[1693938600068,0.02149908,25725.0,25724.0,3.220272]
[1693938600274,0.02149908,25725.0,25724.0,3.220812]
[1693938600485,0.02149908,25725.0,25724.0,3.220692]
[1693938600678,0.02149908,25725.0,25724.0,3.214512]
[1693938600884,0.02149908,25725.0,25724.0,3.213372]
[1693938601142,0.02149908,25725.0,25724.0,3.214452]
[1693938601342,0.02149908,25725.0,25724.0,3.214332]
[1693938601518,0.02149908,25725.0,25724.0,3.214152]
[1693938601738,0.02149908,25725.0,25724.0,3.212592]
[1693938601932,0.02149908,25725.0,25724.0,3.212352]
[1693938602154,0.02149908,25725.0,25724.0,3.212412]
[1693938602350,0.02149908,25725.0,25724.0,3.211932]
[1693938602587,0.02149908,25725.0,25724.0,3.212892]
[1693938602740,0.02149908,25725.0,25724.0,3.212712]
[1693938602940,0.02149908,25725.0,25724.0,3.211572]
[1693938603147,0.02149908,25725.0,25724.0,3.211272]
[1693938603313,0.02149908,25725.0,25724.0,3.211152]
[1693938603503,0.02149908,25725.0,25724.0,3.210732]
[1693938603708,0.02149908,25725.0,25724.0,3.210432]
[1693938604131,0.02149908,25725.0,25724.0,3.211812]
[1693938604314,0.02149908,25725.0,25724.0,3.213732]
[1693938604508,0.02149908,25725.0,25724.0,3.215112]
[1693938604716,0.02149908,25725.0,25724.0,3.213552]
[1693938604918,0.02149908,25725.0,25724.0,3.214032]
[1693938605136,0.02149908,25725.0,25724.0,3.62143727]
[1693938605351,0.02149908,25725.0,25724.0,4.26935727]
[1693938605560,0.02149908,25725.0,25724.0,6.16701252]
[1693938605772,0.02149908,25725.0,25724.0,6.60160845]
[1693938605979,0.02149908,25725.0,25724.0,6.60076845]
[1693938606188,0.01949908,25725.0,25724.0,6.49790845]
[1693938606399,0.02049908,25725.0,25724.0,6.50634845]
[1693938606605,0.01849908,25725.0,25724.0,6.03068]
[1693938606811,0.01849908,25725.0,25724.0,6.01748]
[1693938607016,0.02349908,25725.0,25724.0,6.18466666]
[1693938607219,0.02349908,25725.0,25724.0,6.18034666]
[1693938607446,0.02349908,25725.0,25724.0,6.04464]
[1693938607651,0.02349908,25725.0,25724.0,6.04296]
[1693938607860,0.02349908,25725.0,25724.0,6.0492]
[1693938608042,0.02349908,25725.0,25724.0,6.05328]
[1693938608252,0.02149908,25725.0,25724.0,6.0426]
[1693938608543,0.02349908,25725.0,25724.0,6.042]
[1693938608744,0.02049908,25725.0,25724.0,6.0404]
[1693938608949,0.02049908,25725.0,25724.0,6.03504]
[1693938609193,0.02249908,25725.0,25724.0,6.03936]
[1693938609423,0.02049908,25725.0,25724.0,5.95512]
[1693938609629,0.02249908,25725.0,25724.0,5.85835476]
[1693938609849,0.02249908,25725.0,25724.0,5.72633476]
[1693938610026,0.02249908,25725.0,25724.0,5.72261476]
[1693938610236,0.02249908,25725.0,25724.0,5.72405476]
[1693938610440,0.02249908,25725.0,25724.0,5.72381476]
[1693938610645,0.02249908,25725.0,25724.0,5.72453476]
[1693938610786,0.02249908,25725.0,25724.0,5.72681476]
[1693938611145,0.02249908,25725.0,25724.0,5.72861476]
[1693938611291,0.02249908,25725.0,25724.0,5.72873476]
[1693938611493,0.02249908,25725.0,25724.0,5.72885476]
[1693938611919,0.02249908,25725.0,25724.0,5.72753476]
[1693938612078,0.02249908,25725.0,25724.0,5.72765476]
[1693938612276,0.02249908,25725.0,25724.0,5.72681476]
[1693938612497,0.02249908,25725.0,25724.0,5.72669476]
[1693938612703,0.02249908,25725.0,25724.0,5.72453476]
[1693938612908,0.02249908,25725.0,25724.0,5.73785476]
[1693938613243,0.02249908,25725.0,25724.0,5.73689476]
[1693938613649,0.02249908,25725.0,25724.0,5.73665476]
[1693938613848,0.02249908,25725.0,25724.0,5.73653476]
[1693938614047,0.004,25725.0,25724.0,5.73689476]
[1693938614207,0.004,25725.0,25724.0,5.73437476]
[1693938614406,0.004,25725.0,25724.0,5.73653476]
[1693938614602,0.004,25725.0,25724.0,5.73636307]
[1693938614807,0.004,25725.0,25724.0,5.73564307]
[1693938615012,0.004,25725.0,25724.0,5.73552307]
[1693938615238,0.004,25725.0,25724.0,5.73588307]
[1693938615462,0.004,25725.0,25724.0,5.73576307]
[1693938615667,0.004,25725.0,25724.0,5.73516307]
[1693938615863,0.004,25725.0,25724.0,5.76597141]
[1693938616081,0.004,25725.0,25724.0,5.76585141]
[1693938616282,0.004,25725.0,25724.0,5.76525141]
[1693938616583,0.004,25725.0,25724.0,5.76513141]
[1693938616990,0.004,25725.0,25724.0,5.76501141]
[1693938617166,0.004,25725.0,25724.0,5.76489141]
[1693938617658,0.004,25725.0,25724.0,5.76681141]
[1693938617965,0.004,25725.0,25724.0,5.76633141]
[1693938618173,0.004,25725.0,25724.0,5.76561141]
[1693938618380,0.004,25725.0,25724.0,5.76549141]
[1693938618554,0.004,25725.0,25724.0,5.76537141]
[1693938618757,0.004,25725.0,25724.0,5.76501141]
[1693938618976,0.004,25725.0,25724.0,5.76225141]
[1693938619327,0.004,25725.0,25724.0,5.76213141]
[1693938619567,0.004,25725.0,25724.0,5.76333141]
[1693938619777,0.004,25725.0,25724.0,5.76693141]
[1693938619991,0.004,25725.0,25724.0,5.76681141]
[1693938620192,0.004,25725.0,25724.0,5.76669141]
[1693938620389,0.004,25725.0,25724.0,5.76585141]
[1693938620614,0.004,25725.0,25724.0,5.76621141]
[1693938620818,0.004,25725.0,25724.0,5.76525141]
[1693938620972,0.004,25725.0,25724.0,5.76549141]
[1693938621181,0.004,25725.0,25724.0,5.76489141]
[1693938621489,0.004,25725.0,25724.0,5.76837141]
[1693938621687,0.004,25725.0,25724.0,5.76885141]
[1693938621887,0.004,25725.0,25724.0,5.76717141]
[1693938622065,0.004,25725.0,25724.0,5.76825141]
[1693938622262,0.004,25725.0,25724.0,5.76741141]
[1693938622486,0.004,25725.0,25724.0,5.76777141]
[1693938622685,0.004,25725.0,25724.0,5.76681141]
[1693938622973,0.004,25725.0,25724.0,5.76717141]
[1693938623147,0.004,25725.0,25724.0,5.76465141]
[1693938623345,0.004,25725.0,25724.0,5.76525141]
[1693938623521,0.004,25725.0,25724.0,5.76081141]
[1693938623847,0.004,25725.0,25724.0,5.75997141]
[1693938624073,0.004,25725.0,25724.0,5.76045141]
[1693938624346,0.004,25725.0,25724.0,5.76021141]
[1693938624555,0.004,25725.0,25724.0,5.76045141]
[1693938624774,0.004,25725.0,25724.0,5.75853141]
[1693938624977,0.004,25725.0,25724.0,5.75901141]
[1693938625109,0.004,25725.0,25724.0,5.75913141]
[1693938625308,0.004,25725.0,25724.0,5.75793141]
[1693938625515,0.004,25725.0,25724.0,5.75409141]
[1693938625713,0.004,25725.0,25724.0,5.75433141]
[1693938625915,0.004,25725.0,25724.0,5.75445141]
[1693938626111,0.004,25725.0,25724.0,5.75493141]
[1693938626340,0.004,25725.0,25724.0,5.75721141]
[1693938626500,0.004,25725.0,25724.0,5.75733141]
[1693938626699,0.004,25725.0,25724.0,5.75673141]
[1693938626921,0.004,25725.0,25724.0,5.75805141]
[1693938627213,0.004,25725.0,25724.0,5.76081141]
[1693938627426,0.004,25725.0,25724.0,5.76189141]
[1693938627800,0.004,25725.0,25724.0,5.76381141]
[1693938627914,0.004,25725.0,25724.0,5.76405141]
[1693938628270,0.004,25725.0,25724.0,5.76441141]
[1693938628581,0.004,25725.0,25724.0,5.76909141]
[1693938628789,0.004,25725.0,25724.0,5.76933141]
[1693938629192,0.004,25725.0,25724.0,5.76945141]
[1693938629402,0.004,25725.0,25724.0,5.76957141]
[1693938629606,0.004,25725.0,25724.0,5.76945141]
[1693938629809,0.004,25725.0,25724.0,5.76957141]
[1693938630014,0.004,25725.0,25724.0,5.76969141]
[1693938630157,0.004,25725.0,25724.0,5.76981141]
[1693938630359,0.004,25725.0,25724.0,5.76309141]
[1693938630557,0.004,25725.0,25724.0,5.76297141]
[1693938630759,0.004,25725.0,25724.0,5.76261141]
[1693938630966,0.004,25725.0,25724.0,5.76249141]
[1693938631217,0.004,25725.0,25724.0,5.76297141]
[1693938631416,0.004,25725.0,25724.0,5.76153141]
[1693938631617,0.004,25725.0,25724.0,5.75841141]
[1693938631779,0.004,25725.0,25724.0,5.75853141]
[1693938632115,0.004,25725.0,25724.0,5.75913141]
[1693938632322,0.004,25725.0,25724.0,5.76141141]
[1693938632589,0.004,25725.0,25724.0,5.76273141]
[1693938632767,0.004,25725.0,25724.0,5.76285141]
[1693938632982,0.004,25725.0,25724.0,5.76165141]
[1693938633191,0.004,25725.0,25724.0,5.76297141]
[1693938633400,0.004,25725.0,25724.0,5.76321141]
[1693938633552,0.004,25725.0,25724.0,5.76261141]
[1693938633755,0.004,25725.0,25724.0,5.76333141]
[1693938634018,0.004,25725.0,25724.0,5.76345141]
[1693938634210,0.004,25725.0,25724.0,5.76525141]
[1693938634361,0.004,25725.0,25724.0,5.76393141]
[1693938634560,0.004,25725.0,25724.0,5.76561141]
[1693938634767,0.004,25725.0,25724.0,5.76573141]
[1693938635151,0.004,25725.0,25724.0,5.76585141]
[1693938635355,0.004,25725.0,25724.0,5.76597141]
[1693938635591,0.004,25725.0,25724.0,5.76621141]
[1693938636000,0.004,25725.0,25724.0,5.76669141]
[1693938636204,0.004,25725.0,25724.0,5.76801141]
[1693938636362,0.004,25725.0,25724.0,5.77017141]
[1693938636933,0.004,25725.0,25724.0,5.77029141]
[1693938637130,0.004,25725.0,25724.0,5.77053141]
[1693938637337,0.004,25725.0,25724.0,5.77257141]
[1693938637553,0.004,25725.0,25724.0,5.77521141]
[1693938637928,0.004,25725.0,25724.0,5.77581141]
[1693938638131,0.004,25725.0,25724.0,5.77773141]
[1693938638331,0.004,25725.0,25724.0,5.78169141]
[1693938638547,0.004,25725.0,25724.0,5.76873141]
[1693938638943,0.004,25725.0,25724.0,5.76861141]
[1693938639311,0.004,25725.0,25724.0,5.76933141]
[1693938639520,0.004,25725.0,25724.0,5.76921141]
[1693938639732,0.004,25725.0,25724.0,5.76909141]
[1693938639973,0.004,25725.0,25724.0,5.74545141]
[1693938640177,0.004,25725.0,25724.0,5.74653141]
[1693938640380,0.004,25725.0,25724.0,5.75985141]
[1693938640589,0.004,25725.0,25724.0,5.75289141]
[1693938640764,0.004,25725.0,25724.0,5.75241141]
[1693938641006,0.004,25725.0,25724.0,5.75829141]
[1693938641216,0.004,25725.0,25724.0,5.76249141]
[1693938641419,0.004,25725.0,25724.0,5.75937141]
[1693938641620,0.004,25725.0,25724.0,5.75949141]
[1693938641841,0.004,25725.0,25724.0,5.76225141]
[1693938642048,0.004,25725.0,25724.0,5.76069141]
[1693938642225,0.004,25725.0,25724.0,5.75493141]
[1693938642435,0.004,25725.0,25724.0,5.75517141]
[1693938642701,0.004,25725.0,25724.0,5.75529141]
[1693938642907,0.004,25725.0,25724.0,5.75565141]
[1693938643125,0.004,25725.0,25724.0,5.75577141]
[1693938643327,0.004,25725.0,25724.0,5.75649141]
[1693938643509,0.004,25725.0,25724.0,5.75937141]
[1693938643647,0.004,25725.0,25724.0,5.76273141]
[1693938643849,0.004,25725.0,25724.0,5.76285141]
[1693938644480,0.004,25725.0,25724.0,5.76297141]
[1693938644676,0.004,25725.0,25724.0,5.76333141]
[1693938644902,0.004,25725.0,25724.0,5.76117141]
[1693938645227,0.004,25725.0,25724.0,5.76609141]
[1693938645369,0.004,25725.0,25724.0,5.76741141]
[1693938645574,0.004,25725.0,25724.0,5.74209141]
[1693938645780,0.004,25725.0,25724.0,5.73981141]
[1693938645958,0.004,25725.0,25724.0,5.74125141]
[1693938646160,0.004,25725.0,25724.0,5.74161141]
[1693938646573,0.004,25725.0,25724.0,5.74185141]
[1693938646976,0.004,25725.0,25724.0,5.73669141]
[1693938647385,0.004,25725.0,25724.0,5.73549141]
[1693938647624,0.004,25725.0,25724.0,5.82485665]
[1693938647820,0.004,25725.0,25724.0,5.83313665]
[1693938648071,0.004,25725.0,25724.0,5.74053141]
[1693938648412,0.004,25725.0,25724.0,5.73993141]
[1693938648613,0.004,25725.0,25724.0,5.83037665]
[1693938648836,0.004,25725.0,25724.0,5.83337665]
[1693938649014,0.004,25725.0,25724.0,5.82713665]
[1693938649228,0.004,25725.0,25724.0,5.82821665]
[1693938649424,0.004,25725.0,25724.0,5.82833665]
[1693938649650,0.004,25725.0,25724.0,5.82497665]
[1693938649859,0.004,25725.0,25724.0,5.68583665]
[1693938650084,0.004,25725.0,25724.0,5.68199665]
[1693938650289,0.004,25725.0,25724.0,5.68613665]
[1693938650496,0.004,25725.0,25724.0,5.82046895]
[1693938650700,0.004,25725.0,25724.0,5.76566061]
[1693938650903,0.004,25725.0,25724.0,5.33285497]
[1693938651109,0.01834647,25725.0,25724.0,5.33183497]
[1693938651308,0.01834647,25725.0,25724.0,5.32871497]
[1693938651534,0.01834647,25725.0,25724.0,5.33363497]
[1693938651739,0.01834647,25725.0,25724.0,5.76789169]
[1693938651937,0.01834647,25725.0,25724.0,5.33453497]
[1693938652145,0.01834647,25725.0,25724.0,5.33483497]
[1693938652350,0.01834647,25725.0,25724.0,5.33513497]
[1693938652555,0.01834647,25725.0,25724.0,5.33423497]
[1693938652754,0.01834647,25725.0,25724.0,5.33555497]
[1693938652955,0.01834647,25725.0,25724.0,5.33603497]
[1693938653156,0.01834647,25725.0,25724.0,5.33627497]
[1693938653359,0.01834647,25725.0,25724.0,5.33651497]
[1693938653668,0.01834647,25725.0,25724.0,5.33675497]
[1693938654067,0.01834647,25725.0,25724.0,5.33609497]
[1693938654277,0.01834647,25725.0,25724.0,5.33627497]
[1693938654476,0.01834647,25725.0,25724.0,5.33771497]
[1693938654704,0.01834647,25725.0,25724.0,5.33981497]
[1693938654856,0.01834647,25725.0,25724.0,5.34041497]
[1693938655060,0.01834647,25725.0,25724.0,5.34137497]
[1693938655338,0.01834647,25725.0,25724.0,5.53367497]
[1693938655487,0.004,25725.0,25724.0,5.98331497]
[1693938655688,0.004,25725.0,25724.0,5.99183497]
[1693938655922,0.004,25725.0,25724.0,5.98907497]
[1693938656110,0.004,25725.0,25724.0,5.98871497]
[1693938656291,0.004,25725.0,25724.0,5.98607497]
[1693938656489,0.004,25725.0,25724.0,5.98439497]
[1693938656696,0.004,25725.0,25724.0,5.97755497]
[1693938656933,0.004,25725.0,25724.0,5.97431497]
[1693938657156,0.004,25725.0,25724.0,5.96711497]
[1693938657271,0.004,25725.0,25724.0,5.96675497]
[1693938657474,0.004,25725.0,25724.0,5.96903497]
[1693938657725,0.004,25725.0,25724.0,5.96891497]
[1693938657919,0.004,25725.0,25724.0,5.96831497]
[1693938658127,0.004,25725.0,25724.0,5.96567497]
[1693938658323,0.004,25725.0,25724.0,5.94911497]
[1693938658496,0.004,25725.0,25724.0,6.44912193]
[1693938658705,0.004,25725.0,25724.0,6.84675224]
[1693938658929,0.004,25725.0,25724.0,6.88585224]
[1693938659133,0.004,25725.0,25724.0,7.00275224]
[1693938659347,0.004,25725.0,25724.0,7.00581224]
[1693938659527,0.004,25725.0,25724.0,7.00401224]
[1693938659724,0.004,25725.0,25724.0,7.00113224]
[1693938659930,0.004,25725.0,25724.0,7.00023224]
[1693938660132,0.004,25725.0,25724.0,6.99951224]